[Event "Titled Tuesday Blitz August 16 Early 2022"]
[White "Rosenberg, Evan S"]
[Black "Aradhya, Garg"]
[WhiteFideId "2019299"]
[BlackFideId "25006746"]
[WhiteElo "1999"]
[BlackElo "2203"]
[Result "0-1"]
[Round "03"]
[TimeControl "180+2"]
[Date "2022.08.18"]
[WhiteClock "0:00:00"]
[BlackClock "0:00:00"]

1. e4 {[%clk 0:00:00]}  e5 {[%clk 0:00:00]} 2. Bc4 {[%clk 0:00:00]}  Nf6 {[%clk 0:00:00]} 3. d3 {[%clk 0:00:00]}  Nc6 {[%clk 0:00:00]} 4. Nc3 {[%clk 0:00:00]}  Na5 {[%clk 0:00:00]} 5. Qf3 {[%clk 0:00:00]}  Be7 {[%clk 0:00:00]} 6. Nge2 {[%clk 0:00:00]}  O-O {[%clk 0:00:00]} 7. Ng3 {[%clk 0:00:00]}  c6 {[%clk 0:00:00]} 8. Bb3 {[%clk 0:00:00]}  d5 {[%clk 0:00:00]} 9. h3 {[%clk 0:00:00]}  Be6 {[%clk 0:00:00]} 10. Nf5 {[%clk 0:00:00]}  Re8 {[%clk 0:00:00]} 11. Nxe7+ {[%clk 0:00:00]}  Qxe7 {[%clk 0:00:00]} 12. Bg5 {[%clk 0:00:00]}  Nxb3 {[%clk 0:00:00]} 13. axb3 {[%clk 0:00:00]}  h6 {[%clk 0:00:00]} 14. Bxf6 {[%clk 0:00:00]}  Qxf6 {[%clk 0:00:00]} 15. Qxf6 {[%clk 0:00:00]}  gxf6 {[%clk 0:00:00]} 16. Ke2 {[%clk 0:00:00]}  f5 {[%clk 0:00:00]} 17. f3 {[%clk 0:00:00]}  fxe4 {[%clk 0:00:00]} 18. fxe4 {[%clk 0:00:00]}  f5 {[%clk 0:00:00]} 19. exf5 {[%clk 0:00:00]}  Bxf5 {[%clk 0:00:00]} 20. Ra4 {[%clk 0:00:00]}  Kg7 {[%clk 0:00:00]} 21. Rf1 {[%clk 0:00:00]}  Rf8 {[%clk 0:00:00]} 22. g4 {[%clk 0:00:00]}  Be6 {[%clk 0:00:00]} 23. Rxf8 {[%clk 0:00:00]}  Kxf8 {[%clk 0:00:00]} 24. Kf3 {[%clk 0:00:00]}  Ke7 {[%clk 0:00:00]} 25. Kg3 {[%clk 0:00:00]}  a6 {[%clk 0:00:00]} 26. Ra1 {[%clk 0:00:00]}  h5 {[%clk 0:00:00]} 27. Re1 {[%clk 0:00:00]}  hxg4 {[%clk 0:00:00]} 28. hxg4 {[%clk 0:00:00]}  Rg8 {[%clk 0:00:00]} 29. Rxe5 {[%clk 0:00:00]}  Kd6 {[%clk 0:00:00]} 30. Re1 {[%clk 0:00:00]}  Bxg4 {[%clk 0:00:00]} 31. Kf4 {[%clk 0:00:00]}  Be6 {[%clk 0:00:00]} 32. Re2 {[%clk 0:00:00]}  Rg4+ {[%clk 0:00:00]} 33. Kf3 {[%clk 0:00:00]}  Rg7 {[%clk 0:00:00]} 34. Rh2 {[%clk 0:00:00]}  Rf7+ {[%clk 0:00:00]} 35. Ke3 {[%clk 0:00:00]}  Rg7 {[%clk 0:00:00]} 36. Ne2 {[%clk 0:00:00]}  Bd7 {[%clk 0:00:00]} 37. Nf4 {[%clk 0:00:00]}  Re7+ {[%clk 0:00:00]} 38. Kd2 {[%clk 0:00:00]}  Rf7 {[%clk 0:00:00]} 39. Ne2 {[%clk 0:00:00]}  a5 {[%clk 0:00:00]} 40. Rh6+ {[%clk 0:00:00]}  Kc7 {[%clk 0:00:00]} 41. Nd4 {[%clk 0:00:00]}  c5 {[%clk 0:00:00]} 42. Ne6+ {[%clk 0:00:00]}  Bxe6 {[%clk 0:00:00]} 43. Rxe6 {[%clk 0:00:00]}  Rf2+ {[%clk 0:00:00]} 44. Re2 {[%clk 0:00:00]}  Rxe2+ {[%clk 0:00:00]} 45. Kxe2 {[%clk 0:00:00]}  Kd6 {[%clk 0:00:00]} 46. d4 {[%clk 0:00:00]}  cxd4 {[%clk 0:00:00]} 47. Kd3 {[%clk 0:00:00]}  Ke5 {[%clk 0:00:00]} 48. Kd2 {[%clk 0:00:00]}  Ke4 {[%clk 0:00:00]} 49. Ke2 {[%clk 0:00:00]}  Kf5 {[%clk 0:00:00]} 50. Kd3 {[%clk 0:00:00]}  Ke5 {[%clk 0:00:00]} 51. Kd2 {[%clk 0:00:00]}  Ke4 {[%clk 0:00:00]} 52. Ke2 {[%clk 0:00:00]}  b5 {[%clk 0:00:00]} 53. Kd2 {[%clk 0:00:00]}  d3 {[%clk 0:00:00]} 54. c3 {[%clk 0:00:00]}  b4 {[%clk 0:00:00]} 55. c4 {[%clk 0:00:00]}  dxc4 {[%clk 0:00:00]} 56. bxc4 {[%clk 0:00:00]}  Kd4 {[%clk 0:00:00]} 57. c5 {[%clk 0:00:00]}  Kxc5 {[%clk 0:00:00]} 58. Kxd3 {[%clk 0:00:00]}  a4 {[%clk 0:00:00]} 59. Kc2 {[%clk 0:00:00]}  Kd4 {[%clk 0:00:00]} 60. Kd2 {[%clk 0:00:00]}  Ke4 {[%clk 0:00:00]} 61. Kc2 {[%clk 0:00:00]}  Ke3 {[%clk 0:00:00]} 62. Kb1 {[%clk 0:00:00]}  Kd2 {[%clk 0:00:00]} 63. Ka2 {[%clk 0:00:00]}  Kc2 {[%clk 0:00:00]} 64. Ka1 {[%clk 0:00:00]}  a3 {[%clk 0:00:00]} 65. bxa3 {[%clk 0:00:00]}  b3 {[%clk 0:00:00]} 66. a4 {[%clk 0:00:00]}  b2+ {[%clk 0:00:00]} 67. Ka2 {[%clk 0:00:00]}  b1=Q+ {[%clk 0:00:00]} 68. Ka3 {[%clk 0:00:00]}  Qb3# {[%clk 0:00:00]} 0-1


[Site "https://www.chess.com"]

[Event "Titled Tuesday Blitz August 16 Early 2022"]
[White "Rostomyan, Mikayel"]
[Black "Ardila, Oscar Humberto"]
[WhiteFideId "13313754"]
[BlackFideId "4404742"]
[WhiteElo "1426"]
[BlackElo "1939"]
[Result "0-1"]
[Round "03"]
[TimeControl "180+2"]
[Date "2022.08.18"]
[WhiteClock "0:00:00"]
[BlackClock "0:00:00"]

1. d4 {[%clk 0:00:00]}  Nf6 {[%clk 0:00:00]} 2. Nf3 {[%clk 0:00:00]}  g6 {[%clk 0:00:00]} 3. e3 {[%clk 0:00:00]}  Bg7 {[%clk 0:00:00]} 4. b3 {[%clk 0:00:00]}  d6 {[%clk 0:00:00]} 5. Bb2 {[%clk 0:00:00]}  Nbd7 {[%clk 0:00:00]} 6. Be2 {[%clk 0:00:00]}  c6 {[%clk 0:00:00]} 7. O-O {[%clk 0:00:00]}  O-O {[%clk 0:00:00]} 8. c4 {[%clk 0:00:00]}  Qc7 {[%clk 0:00:00]} 9. Nc3 {[%clk 0:00:00]}  e5 {[%clk 0:00:00]} 10. dxe5 {[%clk 0:00:00]}  Nxe5 {[%clk 0:00:00]} 11. Qc2 {[%clk 0:00:00]}  Bf5 {[%clk 0:00:00]} 12. e4 {[%clk 0:00:00]}  Bd7 {[%clk 0:00:00]} 13. Rad1 {[%clk 0:00:00]}  Rad8 {[%clk 0:00:00]} 14. h3 {[%clk 0:00:00]}  Bc8 {[%clk 0:00:00]} 15. Nd4 {[%clk 0:00:00]}  Rfe8 {[%clk 0:00:00]} 16. Ba3 {[%clk 0:00:00]}  g5 {[%clk 0:00:00]} 17. Nf5 {[%clk 0:00:00]}  Bxf5 {[%clk 0:00:00]} 18. exf5 {[%clk 0:00:00]}  d5 {[%clk 0:00:00]} 19. cxd5 {[%clk 0:00:00]}  cxd5 {[%clk 0:00:00]} 20. Qd2 {[%clk 0:00:00]}  a6 {[%clk 0:00:00]} 21. Bb2 {[%clk 0:00:00]}  d4 {[%clk 0:00:00]} 22. Na4 {[%clk 0:00:00]}  Ne4 {[%clk 0:00:00]} 23. Qb4 {[%clk 0:00:00]}  Nc6 {[%clk 0:00:00]} 24. Qe1 {[%clk 0:00:00]}  b5 {[%clk 0:00:00]} 25. Bf3 {[%clk 0:00:00]}  Nc3 {[%clk 0:00:00]} 26. Qd2 {[%clk 0:00:00]}  Nxd1 {[%clk 0:00:00]} 27. Rxd1 {[%clk 0:00:00]}  bxa4 {[%clk 0:00:00]} 28. Rc1 {[%clk 0:00:00]}  Rd6 {[%clk 0:00:00]} 29. Qxg5 {[%clk 0:00:00]}  Qe7 {[%clk 0:00:00]} 30. Qg3 {[%clk 0:00:00]}  Ne5 {[%clk 0:00:00]} 31. Ba3 {[%clk 0:00:00]}  Nxf3+ {[%clk 0:00:00]} 32. gxf3 {[%clk 0:00:00]}  Red8 {[%clk 0:00:00]} 33. Kg2 {[%clk 0:00:00]}  Qf6 {[%clk 0:00:00]} 34. Bxd6 {[%clk 0:00:00]}  Qxd6 {[%clk 0:00:00]} 35. Qg4 {[%clk 0:00:00]}  Qf6 {[%clk 0:00:00]} 36. Qe4 {[%clk 0:00:00]}  d3 {[%clk 0:00:00]} 37. Rc6 {[%clk 0:00:00]}  Qg5+ {[%clk 0:00:00]} 38. Kh2 {[%clk 0:00:00]}  d2 {[%clk 0:00:00]} 39. f4 {[%clk 0:00:00]}  Qh5 {[%clk 0:00:00]} 40. f6 {[%clk 0:00:00]}  d1=Q {[%clk 0:00:00]} 41. fxg7 {[%clk 0:00:00]}  Qhf3 {[%clk 0:00:00]} 42. Qxf3 {[%clk 0:00:00]}  Qxf3 {[%clk 0:00:00]} 43. Rc2 {[%clk 0:00:00]}  Qxf4+ {[%clk 0:00:00]} 44. Kg2 {[%clk 0:00:00]}  Qe4+ {[%clk 0:00:00]} 45. Kg3 {[%clk 0:00:00]}  Qxc2 {[%clk 0:00:00]} 0-1


[Site "https://www.chess.com"]

[Event "Titled Tuesday Blitz August 16 Early 2022"]
[White "Rustemov, Alexander"]
[Black "Omelja, Artem"]
[WhiteFideId "4119002"]
[BlackFideId "14119846"]
[WhiteElo "2525"]
[BlackElo "2382"]
[Result "1-0"]
[Round "03"]
[TimeControl "180+2"]
[Date "2022.08.18"]
[WhiteClock "0:00:00"]
[BlackClock "0:00:00"]

1. d4 {[%clk 0:00:00]}  d5 {[%clk 0:00:00]} 2. c4 {[%clk 0:00:00]}  c6 {[%clk 0:00:00]} 3. Nc3 {[%clk 0:00:00]}  e6 {[%clk 0:00:00]} 4. e3 {[%clk 0:00:00]}  Nf6 {[%clk 0:00:00]} 5. Nf3 {[%clk 0:00:00]}  Nbd7 {[%clk 0:00:00]} 6. Qc2 {[%clk 0:00:00]}  Bd6 {[%clk 0:00:00]} 7. b3 {[%clk 0:00:00]}  O-O {[%clk 0:00:00]} 8. Be2 {[%clk 0:00:00]}  b6 {[%clk 0:00:00]} 9. O-O {[%clk 0:00:00]}  Bb7 {[%clk 0:00:00]} 10. Bb2 {[%clk 0:00:00]}  Rc8 {[%clk 0:00:00]} 11. Rad1 {[%clk 0:00:00]}  c5 {[%clk 0:00:00]} 12. dxc5 {[%clk 0:00:00]}  Nxc5 {[%clk 0:00:00]} 13. Qb1 {[%clk 0:00:00]}  Qe7 {[%clk 0:00:00]} 14. cxd5 {[%clk 0:00:00]}  Nxd5 {[%clk 0:00:00]} 15. Nxd5 {[%clk 0:00:00]}  Bxd5 {[%clk 0:00:00]} 16. Qa1 {[%clk 0:00:00]}  f6 {[%clk 0:00:00]} 17. Rc1 {[%clk 0:00:00]}  Rfd8 {[%clk 0:00:00]} 18. Rfd1 {[%clk 0:00:00]}  Bb8 {[%clk 0:00:00]} 19. h3 {[%clk 0:00:00]}  Bb7 {[%clk 0:00:00]} 20. Ba3 {[%clk 0:00:00]}  Rxd1+ {[%clk 0:00:00]} 21. Rxd1 {[%clk 0:00:00]}  Qc7 {[%clk 0:00:00]} 22. Qd4 {[%clk 0:00:00]}  e5 {[%clk 0:00:00]} 23. Qc4+ {[%clk 0:00:00]}  Kh8 {[%clk 0:00:00]} 24. Bxc5 {[%clk 0:00:00]}  bxc5 {[%clk 0:00:00]} 25. Qe6 {[%clk 0:00:00]}  e4 {[%clk 0:00:00]} 26. Rd7 {[%clk 0:00:00]}  Qa5 {[%clk 0:00:00]} 27. Qf7 {[%clk 0:00:00]}  Rg8 {[%clk 0:00:00]} 28. Bc4 {[%clk 0:00:00]}  exf3 {[%clk 0:00:00]} 29. Qxg8# {[%clk 0:00:00]} 1-0


[Site "https://www.chess.com"]

[Event "Titled Tuesday Blitz August 16 Early 2022"]
[White "Sadubayev, Airat"]
[Black "Bintang, Rasyid A. Hidayat"]
[WhiteFideId "13713264"]
[BlackFideId "7105355"]
[WhiteElo "2151"]
[BlackElo "1820"]
[Result "0-1"]
[Round "03"]
[TimeControl "180+2"]
[Date "2022.08.18"]
[WhiteClock "0:00:00"]
[BlackClock "0:00:00"]

1. d4 {[%clk 0:00:00]}  d5 {[%clk 0:00:00]} 2. c4 {[%clk 0:00:00]}  Nc6 {[%clk 0:00:00]} 3. Nf3 {[%clk 0:00:00]}  Bg4 {[%clk 0:00:00]} 4. Nc3 {[%clk 0:00:00]}  e6 {[%clk 0:00:00]} 5. cxd5 {[%clk 0:00:00]}  exd5 {[%clk 0:00:00]} 6. Bf4 {[%clk 0:00:00]}  Bd6 {[%clk 0:00:00]} 7. Bg3 {[%clk 0:00:00]}  Nf6 {[%clk 0:00:00]} 8. e3 {[%clk 0:00:00]}  O-O {[%clk 0:00:00]} 9. Be2 {[%clk 0:00:00]}  Ne7 {[%clk 0:00:00]} 10. O-O {[%clk 0:00:00]}  c6 {[%clk 0:00:00]} 11. Be5 {[%clk 0:00:00]}  Ng6 {[%clk 0:00:00]} 12. Bxd6 {[%clk 0:00:00]}  Qxd6 {[%clk 0:00:00]} 13. h3 {[%clk 0:00:00]}  Bxf3 {[%clk 0:00:00]} 14. Bxf3 {[%clk 0:00:00]}  Rae8 {[%clk 0:00:00]} 15. Qc2 {[%clk 0:00:00]}  Nh4 {[%clk 0:00:00]} 16. Be2 {[%clk 0:00:00]}  Ne4 {[%clk 0:00:00]} 17. Nxe4 {[%clk 0:00:00]}  Rxe4 {[%clk 0:00:00]} 18. Bd3 {[%clk 0:00:00]}  Re6 {[%clk 0:00:00]} 19. Bxh7+ {[%clk 0:00:00]}  Kh8 {[%clk 0:00:00]} 20. Bd3 {[%clk 0:00:00]}  f5 {[%clk 0:00:00]} 21. g3 {[%clk 0:00:00]}  Nf3+ {[%clk 0:00:00]} 22. Kg2 {[%clk 0:00:00]}  Ng5 {[%clk 0:00:00]} 23. Bxf5 {[%clk 0:00:00]}  Ref6 {[%clk 0:00:00]} 24. Bd3 {[%clk 0:00:00]}  Qd7 {[%clk 0:00:00]} 25. g4 {[%clk 0:00:00]}  Nf3 {[%clk 0:00:00]} 26. Be2 {[%clk 0:00:00]}  Nh4+ {[%clk 0:00:00]} 27. Kg1 {[%clk 0:00:00]}  g5 {[%clk 0:00:00]} 28. Qd2 {[%clk 0:00:00]}  Rf3 {[%clk 0:00:00]} 29. e4 {[%clk 0:00:00]}  R8f4 {[%clk 0:00:00]} 30. Kh2 {[%clk 0:00:00]}  Rxg4 {[%clk 0:00:00]} 31. Rg1 {[%clk 0:00:00]}  Rxh3+ {[%clk 0:00:00]} 32. Kxh3 {[%clk 0:00:00]}  Rxg1+ {[%clk 0:00:00]} 33. Kh2 {[%clk 0:00:00]}  Rg2+ {[%clk 0:00:00]} 0-1


[Site "https://www.chess.com"]

[Event "Titled Tuesday Blitz August 16 Early 2022"]
[White "Sailer, Mike"]
[Black "Begunov, Konstantin"]
[WhiteFideId "2012901"]
[BlackFideId "4118510"]
[WhiteElo "2109"]
[BlackElo "2262"]
[Result "0-1"]
[Round "03"]
[TimeControl "180+2"]
[Date "2022.08.18"]
[WhiteClock "0:00:00"]
[BlackClock "0:00:00"]

1. d4 {[%clk 0:00:00]}  d5 {[%clk 0:00:00]} 2. Nc3 {[%clk 0:00:00]}  c6 {[%clk 0:00:00]} 3. Bf4 {[%clk 0:00:00]}  Bf5 {[%clk 0:00:00]} 4. Qd2 {[%clk 0:00:00]}  Nf6 {[%clk 0:00:00]} 5. f3 {[%clk 0:00:00]}  e6 {[%clk 0:00:00]} 6. g4 {[%clk 0:00:00]}  Bg6 {[%clk 0:00:00]} 7. h4 {[%clk 0:00:00]}  h6 {[%clk 0:00:00]} 8. e3 {[%clk 0:00:00]}  Bd6 {[%clk 0:00:00]} 9. Nh3 {[%clk 0:00:00]}  a6 {[%clk 0:00:00]} 10. Bd3 {[%clk 0:00:00]}  Bxd3 {[%clk 0:00:00]} 11. Qxd3 {[%clk 0:00:00]}  c5 {[%clk 0:00:00]} 12. dxc5 {[%clk 0:00:00]}  Bxc5 {[%clk 0:00:00]} 13. O-O-O {[%clk 0:00:00]}  Nc6 {[%clk 0:00:00]} 14. g5 {[%clk 0:00:00]}  Nh5 {[%clk 0:00:00]} 15. gxh6 {[%clk 0:00:00]}  g6 {[%clk 0:00:00]} 16. Ng5 {[%clk 0:00:00]}  Nxf4 {[%clk 0:00:00]} 17. exf4 {[%clk 0:00:00]}  Rxh6 {[%clk 0:00:00]} 18. f5 {[%clk 0:00:00]}  gxf5 {[%clk 0:00:00]} 19. Rde1 {[%clk 0:00:00]}  Kf8 {[%clk 0:00:00]} 20. f4 {[%clk 0:00:00]}  Qf6 {[%clk 0:00:00]} 21. h5 {[%clk 0:00:00]}  Bb4 {[%clk 0:00:00]} 22. Re2 {[%clk 0:00:00]}  Bxc3 {[%clk 0:00:00]} 23. bxc3 {[%clk 0:00:00]}  Na5 {[%clk 0:00:00]} 24. Rhe1 {[%clk 0:00:00]}  Rc8 {[%clk 0:00:00]} 25. Nxe6+ {[%clk 0:00:00]}  fxe6 {[%clk 0:00:00]} 26. Rxe6 {[%clk 0:00:00]}  Qxe6 {[%clk 0:00:00]} 27. Rxe6 {[%clk 0:00:00]}  Rxe6 {[%clk 0:00:00]} 28. Qxf5+ {[%clk 0:00:00]}  Ke7 {[%clk 0:00:00]} 29. Qxd5 {[%clk 0:00:00]}  Nc4 {[%clk 0:00:00]} 30. Qxb7+ {[%clk 0:00:00]}  Kd8 {[%clk 0:00:00]} 31. f5 {[%clk 0:00:00]}  Re1# {[%clk 0:00:00]} 0-1


[Site "https://www.chess.com"]

[Event "Titled Tuesday Blitz August 16 Early 2022"]
[White "Santos Ruiz, Miguel"]
[Black "Sarana, Alexey"]
[WhiteFideId "22291482"]
[BlackFideId "24133795"]
[WhiteElo "2478"]
[BlackElo "2666"]
[Result "1/2-1/2"]
[Round "03"]
[TimeControl "180+1"]
[Date "2022.08.16"]
[WhiteClock "0:00:07"]
[BlackClock "0:00:05"]

1. e4 {[%clk 0:03:00]}  c5 {[%clk 0:02:59]} 2. Nf3 {[%clk 0:03:00]}  d6 {[%clk 0:02:59]} 3. d4 {[%clk 0:03:00]}  cxd4 {[%clk 0:03:00]} 4. Nxd4 {[%clk 0:03:01]}  Nf6 {[%clk 0:03:01]} 5. Nc3 {[%clk 0:03:01]}  a6 {[%clk 0:03:02]} 6. Be2 {[%clk 0:03:01]}  e5 {[%clk 0:03:02]} 7. Nb3 {[%clk 0:03:01]}  Be7 {[%clk 0:03:02]} 8. Be3 {[%clk 0:03:01]}  Be6 {[%clk 0:03:02]} 9. Nd5 {[%clk 0:03:02]}  Nbd7 {[%clk 0:02:57]} 10. Qd3 {[%clk 0:03:01]}  O-O {[%clk 0:02:54]} 11. O-O {[%clk 0:03:00]}  Rc8 {[%clk 0:02:50]} 12. c4 {[%clk 0:03:00]}  Ne8 {[%clk 0:02:28]} 13. Nxe7+ {[%clk 0:02:42]}  Qxe7 {[%clk 0:02:29]} 14. Nd2 {[%clk 0:02:35]}  Nc5 {[%clk 0:02:20]} 15. Qa3 {[%clk 0:02:32]}  Nf6 {[%clk 0:02:11]} 16. f3 {[%clk 0:02:24]}  Rc7 {[%clk 0:02:05]} 17. Rfd1 {[%clk 0:02:20]}  Rfc8 {[%clk 0:02:05]} 18. Nb1 {[%clk 0:02:15]}  Nh5 {[%clk 0:02:02]} 19. Nc3 {[%clk 0:02:10]}  Nf4 {[%clk 0:01:57]} 20. Bf1 {[%clk 0:02:07]}  Rc6 {[%clk 0:01:31]} 21. Rd2 {[%clk 0:01:57]}  h5 {[%clk 0:01:17]} 22. Re1 {[%clk 0:01:35]}  h4 {[%clk 0:00:42]} 23. Nd5 {[%clk 0:01:07]}  Qg5 {[%clk 0:00:42]} 24. Kh1 {[%clk 0:00:56]}  Bxd5 {[%clk 0:00:42]} 25. Rxd5 {[%clk 0:00:54]}  Qf6 {[%clk 0:00:32]} 26. Rd2 {[%clk 0:00:43]}  Nfe6 {[%clk 0:00:30]} 27. h3 {[%clk 0:00:39]}  Nf4 {[%clk 0:00:29]} 28. Red1 {[%clk 0:00:38]}  Nh5 {[%clk 0:00:29]} 29. Kg1 {[%clk 0:00:37]}  Ng3 {[%clk 0:00:28]} 30. Qb4 {[%clk 0:00:29]}  b6 {[%clk 0:00:27]} 31. b3 {[%clk 0:00:29]}  a5 {[%clk 0:00:27]} 32. Qb5 {[%clk 0:00:29]}  Qe6 {[%clk 0:00:20]} 33. Bf2 {[%clk 0:00:26]}  Qg6 {[%clk 0:00:20]} 34. a3 {[%clk 0:00:24]}  Nd7 {[%clk 0:00:19]} 35. Qd5 {[%clk 0:00:21]}  Nf6 {[%clk 0:00:18]} 36. Qd3 {[%clk 0:00:19]}  Nfh5 {[%clk 0:00:18]} 37. Qe3 {[%clk 0:00:17]}  Nf4 {[%clk 0:00:18]} 38. Bxg3 {[%clk 0:00:16]}  Qxg3 {[%clk 0:00:17]} 39. Kh1 {[%clk 0:00:16]}  Qg6 {[%clk 0:00:12]} 40. Qf2 {[%clk 0:00:15]}  Qf6 {[%clk 0:00:12]} 41. Qe3 {[%clk 0:00:15]}  Re8 {[%clk 0:00:12]} 42. b4 {[%clk 0:00:14]}  axb4 {[%clk 0:00:12]} 43. axb4 {[%clk 0:00:15]}  Re6 {[%clk 0:00:11]} 44. Ra2 {[%clk 0:00:15]}  Qg5 {[%clk 0:00:10]} 45. Ra8+ {[%clk 0:00:15]}  Kh7 {[%clk 0:00:10]} 46. Qf2 {[%clk 0:00:13]}  Rg6 {[%clk 0:00:10]} 47. Rda1 {[%clk 0:00:13]}  Nh5 {[%clk 0:00:09]} 48. Rf8 {[%clk 0:00:13]}  Ng3+ {[%clk 0:00:09]} 49. Kg1 {[%clk 0:00:12]}  Rf6 {[%clk 0:00:09]} 50. Raa8 {[%clk 0:00:09]}  Qc1 {[%clk 0:00:09]} 51. Rh8+ {[%clk 0:00:08]}  Kg6 {[%clk 0:00:07]} 52. Rxh4 {[%clk 0:00:09]}  Nxf1 {[%clk 0:00:07]} 53. Rg4+ {[%clk 0:00:09]}  Kh7 {[%clk 0:00:07]} 54. Qxf1 {[%clk 0:00:08]}  Rxc4 {[%clk 0:00:06]} 55. Rh4+ {[%clk 0:00:08]}  Rh6 {[%clk 0:00:05]} 56. Rxh6+ {[%clk 0:00:08]}  Kxh6 {[%clk 0:00:06]} 57. Rh8+ {[%clk 0:00:08]}  Kg6 {[%clk 0:00:06]} 58. Qxc1 {[%clk 0:00:08]}  Rxc1+ {[%clk 0:00:06]} 59. Kh2 {[%clk 0:00:09]}  Rc4 {[%clk 0:00:05]} 60. Rd8 {[%clk 0:00:08]}  Rd4 {[%clk 0:00:06]} 61. b5 {[%clk 0:00:09]}  f5 {[%clk 0:00:05]} 62. exf5+ {[%clk 0:00:08]}  Kxf5 {[%clk 0:00:06]} 63. Rb8 {[%clk 0:00:08]}  Rb4 {[%clk 0:00:06]} 64. Rxb6 {[%clk 0:00:08]}  d5 {[%clk 0:00:07]} 65. Kg3 {[%clk 0:00:09]}  d4 {[%clk 0:00:07]} 66. Rb8 {[%clk 0:00:09]}  Ke6 {[%clk 0:00:03]} 67. b6 {[%clk 0:00:08]}  Kd7 {[%clk 0:00:03]} 68. Rb7+ {[%clk 0:00:08]}  Kc6 {[%clk 0:00:03]} 69. Rxg7 {[%clk 0:00:08]}  d3 {[%clk 0:00:03]} 70. Kf2 {[%clk 0:00:08]}  Rb2+ {[%clk 0:00:04]} 71. Ke3 {[%clk 0:00:08]}  d2 {[%clk 0:00:04]} 72. Ke2 {[%clk 0:00:09]}  Kxb6 {[%clk 0:00:02]} 73. Re7 {[%clk 0:00:09]}  Kc5 {[%clk 0:00:02]} 74. Rxe5+ {[%clk 0:00:08]}  Kd4 {[%clk 0:00:02]} 75. Re8 {[%clk 0:00:07]}  d1=Q+ {[%clk 0:00:02]} 76. Kxd1 {[%clk 0:00:07]}  Rxg2 {[%clk 0:00:03]} 77. Re4+ {[%clk 0:00:06]}  Kd5 {[%clk 0:00:02]} 78. Ke1 {[%clk 0:00:06]}  Rh2 {[%clk 0:00:03]} 79. h4 {[%clk 0:00:06]}  Kd6 {[%clk 0:00:04]} 80. Kf1 {[%clk 0:00:06]}  Kd5 {[%clk 0:00:03]} 81. Kg1 {[%clk 0:00:07]}  Rd2 {[%clk 0:00:04]} 82. Kf1 {[%clk 0:00:06]}  Rh2 {[%clk 0:00:04]} 83. Kg1 {[%clk 0:00:07]}  Rc2 {[%clk 0:00:05]} 84. Rg4 {[%clk 0:00:07]}  Ke5 {[%clk 0:00:05]} 85. Rg2 {[%clk 0:00:07]}  Rc1+ {[%clk 0:00:05]} 86. Kf2 {[%clk 0:00:08]}  Kf5 {[%clk 0:00:04]} 87. Rg4 {[%clk 0:00:08]}  Rc2+ {[%clk 0:00:04]} 88. Kg3 {[%clk 0:00:08]}  Rc1 {[%clk 0:00:05]} 89. Re4 {[%clk 0:00:08]}  Rg1+ {[%clk 0:00:04]} 90. Kf2 {[%clk 0:00:09]}  Rh1 {[%clk 0:00:05]} 91. Ra4 {[%clk 0:00:09]}  Rh2+ {[%clk 0:00:04]} 92. Kg3 {[%clk 0:00:09]}  Rh1 {[%clk 0:00:05]} 93. Ra5+ {[%clk 0:00:10]}  Kf6 {[%clk 0:00:06]} 94. h5 {[%clk 0:00:10]}  Rg1+ {[%clk 0:00:05]} 95. Kf4 {[%clk 0:00:10]}  Rh1 {[%clk 0:00:06]} 96. h6 {[%clk 0:00:09]}  Kg6 {[%clk 0:00:05]} 97. Ra6+ {[%clk 0:00:09]}  Kh7 {[%clk 0:00:05]} 98. Kg5 {[%clk 0:00:09]}  Rg1+ {[%clk 0:00:05]} 99. Kf5 {[%clk 0:00:10]}  Rb1 {[%clk 0:00:05]} 100. f4 {[%clk 0:00:10]}  Rb5+ {[%clk 0:00:05]} 101. Kg4 {[%clk 0:00:10]}  Rb1 {[%clk 0:00:04]} 102. f5 {[%clk 0:00:10]}  Rg1+ {[%clk 0:00:04]} 103. Kf4 {[%clk 0:00:10]}  Rf1+ {[%clk 0:00:05]} 104. Ke5 {[%clk 0:00:10]}  Re1+ {[%clk 0:00:05]} 105. Kd5 {[%clk 0:00:07]}  Rd1+ {[%clk 0:00:05]} 106. Ke6 {[%clk 0:00:07]}  Kxh6 {[%clk 0:00:04]} 107. Kf7+ {[%clk 0:00:07]}  Kh7 {[%clk 0:00:04]} 108. Ra2 {[%clk 0:00:03]}  Rd7+ {[%clk 0:00:04]} 109. Ke6 {[%clk 0:00:03]}  Rb7 {[%clk 0:00:04]} 110. Rh2+ {[%clk 0:00:03]}  Kg8 {[%clk 0:00:04]} 111. f6 {[%clk 0:00:03]}  Rb6+ {[%clk 0:00:04]} 112. Ke7 {[%clk 0:00:04]}  Rb7+ {[%clk 0:00:04]} 113. Ke6 {[%clk 0:00:04]}  Rb6+ {[%clk 0:00:05]} 114. Ke7 {[%clk 0:00:05]}  Rb7+ {[%clk 0:00:05]} 115. Kd8 {[%clk 0:00:06]}  Rb6 {[%clk 0:00:04]} 116. Rg2+ {[%clk 0:00:05]}  Kf7 {[%clk 0:00:04]} 117. Rf2 {[%clk 0:00:06]}  Rxf6 {[%clk 0:00:04]} 118. Rxf6+ {[%clk 0:00:07]}  Kxf6 {[%clk 0:00:05]} 1/2-1/2


[Site "https://www.chess.com"]

[Event "Titled Tuesday Blitz August 16 Early 2022"]
[White "Schekachikhin, Maksim"]
[Black "Xie, Bryan"]
[WhiteFideId "24177830"]
[BlackFideId "30941296"]
[WhiteElo "2376"]
[BlackElo "2157"]
[Result "1-0"]
[Round "03"]
[TimeControl "180+2"]
[Date "2022.08.18"]
[WhiteClock "0:00:00"]
[BlackClock "0:00:00"]

1. d4 {[%clk 0:00:00]}  Nf6 {[%clk 0:00:00]} 2. Bg5 {[%clk 0:00:00]}  Ne4 {[%clk 0:00:00]} 3. Bf4 {[%clk 0:00:00]}  c5 {[%clk 0:00:00]} 4. f3 {[%clk 0:00:00]}  Qa5+ {[%clk 0:00:00]} 5. c3 {[%clk 0:00:00]}  Nf6 {[%clk 0:00:00]} 6. d5 {[%clk 0:00:00]}  d6 {[%clk 0:00:00]} 7. e4 {[%clk 0:00:00]}  Nbd7 {[%clk 0:00:00]} 8. Nd2 {[%clk 0:00:00]}  Qc7 {[%clk 0:00:00]} 9. a4 {[%clk 0:00:00]}  g6 {[%clk 0:00:00]} 10. Bd3 {[%clk 0:00:00]}  Bg7 {[%clk 0:00:00]} 11. Ne2 {[%clk 0:00:00]}  O-O {[%clk 0:00:00]} 12. O-O {[%clk 0:00:00]}  b6 {[%clk 0:00:00]} 13. Nc4 {[%clk 0:00:00]}  a6 {[%clk 0:00:00]} 14. Qd2 {[%clk 0:00:00]}  Bb7 {[%clk 0:00:00]} 15. Bh6 {[%clk 0:00:00]}  b5 {[%clk 0:00:00]} 16. Na3 {[%clk 0:00:00]}  c4 {[%clk 0:00:00]} 17. Bc2 {[%clk 0:00:00]}  Bxh6 {[%clk 0:00:00]} 18. Qxh6 {[%clk 0:00:00]}  Qb6+ {[%clk 0:00:00]} 19. Kh1 {[%clk 0:00:00]}  Nc5 {[%clk 0:00:00]} 20. Nd4 {[%clk 0:00:00]}  Nfd7 {[%clk 0:00:00]} 21. f4 {[%clk 0:00:00]}  bxa4 {[%clk 0:00:00]} 22. Nxc4 {[%clk 0:00:00]}  Qc7 {[%clk 0:00:00]} 23. Ne3 {[%clk 0:00:00]}  Nf6 {[%clk 0:00:00]} 24. Ndf5 {[%clk 0:00:00]}  gxf5 {[%clk 0:00:00]} 25. Nxf5 {[%clk 0:00:00]}  Ne8 {[%clk 0:00:00]} 26. e5 {[%clk 0:00:00]}  Bxd5 {[%clk 0:00:00]} 27. Nxe7+ {[%clk 0:00:00]} 1-0


[Site "https://www.chess.com"]